fUSD/lending_fUSD_20260517
["ID","MTS","AMOUNT","RATE_DAILY","PERIOD"]
[422461732,1778968254000,-240.97153233,0.0003429,3]
[422461736,1778968254000,-300.0,0.0003429,3]
[422461734,1778968254000,-329.0784958,0.0003429,3]
[422461737,1778968254000,-8321.47,0.000343,14]
[422461738,1778968254000,-500.0,0.00034324,60]
[422461744,1778968254000,-500.0,0.00034324,60]
[422461739,1778968254000,-500.0,0.00034324,60]
[422461740,1778968254000,-500.0,0.00034324,60]
[422461743,1778968254000,-500.0,0.00034324,60]
[422461741,1778968254000,-500.0,0.00034324,60]
[422461742,1778968254000,-500.0,0.00034324,60]
[422461746,1778968254000,-500.0,0.00034324,60]
[422461749,1778968254000,-500.0,0.00034324,60]
[422461747,1778968254000,-500.0,0.00034324,60]
[422461781,1778968254000,-151.0,0.00035,7]
[422461777,1778968254000,-1000.0,0.00034999,4]
[422461782,1778968254000,-151.0,0.00035,7]
[422461811,1778968254000,-151.0,0.00035004,7]
[422461823,1778968254000,-740.0,0.00035171,30]
[422461822,1778968254000,-577.0,0.00035171,30]
[422461821,1778968254000,-151.0,0.00035171,30]
[422461820,1778968254000,-206.0,0.00035171,30]
[422461816,1778968254000,-354.0,0.00035167,30]
[422461817,1778968254000,-154.0,0.00035167,30]
[422461819,1778968254000,-334.0,0.00035167,30]
[422461815,1778968254000,-4145.74070859,0.00035161,2]
[422461818,1778968254000,-166.24741556,0.00035167,30]
[422461836,1778968254000,-1270.0,0.00035329,2]
[422461826,1778968254000,-391.71765849,0.00035244,2]
[422461825,1778968254000,-1500.0,0.000352,7]
[422461812,1778968254000,-151.0,0.00035004,7]
[422461837,1778968254000,-1223.0,0.00035329,2]
[422461829,1778968254000,-884.0,0.000353,2]
[422461827,1778968254000,-1000.0,0.000353,2]
[422461830,1778968254000,-308.0,0.000353,2]
[422461833,1778968254000,-1354.0,0.00035329,2]
[422461835,1778968254000,-625.0,0.00035329,2]
[422461834,1778968254000,-926.0,0.00035329,2]
[422461832,1778968254000,-3543.0,0.00035329,2]
[422461831,1778968254000,-162.06610683,0.00035315,120]
[422461839,1778968254000,-417.0,0.00035329,2]
[422461842,1778968254000,-2267.62471776,0.00035487,2]
[422461841,1778968254000,-542.96820962,0.00035463,2]
[422461780,1778968254000,-151.0,0.00035,7]
[422461840,1778968254000,-8321.47,0.000354,14]
[422461828,1778968254000,-314.0,0.000353,2]
[422461814,1778968254000,-546.0,0.00035147,10]
[422461838,1778968254000,-930.0,0.00035329,2]
[422461824,1778968254000,-212.0,0.00035171,30]
[422461783,1778968254000,-1198.758275,0.00035,7]
[422461813,1778968254000,-500.0,0.00035068,2]
[422461785,1778968254000,-1198.758275,0.00035,7]
[422461787,1778968254000,-1198.758275,0.00035,7]
[422461788,1778968254000,-151.0,0.00035,7]
[422461790,1778968254000,-374.778137,0.00035,7]
[422461794,1778968254000,-2123.786567,0.00035,7]
[422461792,1778968254000,-151.0,0.00035,7]
[422461786,1778968254000,-1198.758275,0.00035,7]
[422461793,1778968254000,-374.778137,0.00035,7]
[422461791,1778968254000,-374.778137,0.00035,7]
[422461795,1778968254000,-2123.786567,0.00035,7]
[422461789,1778968254000,-374.778137,0.00035,7]
[422461796,1778968254000,-2123.786567,0.00035,7]
[422461784,1778968254000,-151.0,0.00035,7]
[422461810,1778968254000,-151.0,0.00035004,7]
[422461808,1778968254000,-1616.0,0.00035004,5]
[422461797,1778968254000,-2123.786567,0.00035,7]
[422461803,1778968254000,-463.691199,0.00035,7]
[422461799,1778968254000,-305.660067,0.00035,7]
[422461802,1778968254000,-463.691199,0.00035,7]
[422461800,1778968254000,-305.660067,0.00035,7]
[422461806,1778968254000,-463.691199,0.00035,7]
[422461801,1778968254000,-305.660067,0.00035,7]
[422461804,1778968254000,-463.691199,0.00035,7]
[422461798,1778968254000,-305.660067,0.00035,7]
[422461809,1778968254000,-1300.0,0.00035004,5]
[422461805,1778968254000,-151.0,0.00035,7]
[422461807,1778968254000,-215.03962261,0.00035,30]
[422461883,1778968255000,-279.30719,0.000361,7]
[422461875,1778968255000,-151.0,0.000361,7]
[422461886,1778968255000,-542.96820962,0.00036144,2]
[422461887,1778968255000,-851.9,0.00036153,30]
[422461881,1778968255000,-151.0,0.000361,7]
[422461888,1778968255000,-6536.0,0.00036164,2]
[422461879,1778968255000,-151.0,0.000361,7]
[422461882,1778968255000,-279.30719,0.000361,7]
[422461880,1778968255000,-232.716665,0.000361,7]
[422461877,1778968255000,-151.0,0.000361,7]
[422461885,1778968255000,-279.30719,0.000361,7]
[422461878,1778968255000,-151.0,0.000361,7]
[422461884,1778968255000,-279.30719,0.000361,7]
[422461892,1778968255000,-206.0,0.00036171,30]
[422461902,1778968255000,-1485.0,0.00036243,2]
[422461897,1778968255000,-288.0,0.00036192,30]
[422461895,1778968255000,-740.0,0.00036171,30]
[422461889,1778968255000,-354.0,0.00036167,30]
[422461901,1778968255000,-1699.0,0.00036243,2]
[422461898,1778968255000,-1000.0,0.00036199,34]
[422461890,1778968255000,-154.0,0.00036167,30]
[422461893,1778968255000,-151.0,0.00036171,30]
[422461899,1778968255000,-1078.25,0.000362,30]
[422461900,1778968255000,-546.0,0.00036214,11]
[422461894,1778968255000,-577.0,0.00036171,30]
[422461896,1778968255000,-212.0,0.00036171,30]
[422461904,1778968255000,-4145.74070859,0.00036252,2]
[422461916,1778968255000,-300.0,0.00036329,2]
[422461906,1778968255000,-150.0,0.00036298,2]
[422461891,1778968255000,-334.0,0.00036167,30]
[422461874,1778968255000,-151.0,0.000361,7]
[422461843,1778968255000,-453.90549254,0.00035616,60]
[422461873,1778968255000,-184.204153,0.000361,7]
[422461914,1778968255000,-4145.74070859,0.00036299,2]
[422461844,1778968255000,-1696.12062931,0.00035616,30]
[422461847,1778968255000,-1000.0,0.00035652,100]
[422461849,1778968255000,-542.96820962,0.00035784,2]
[422461850,1778968255000,-542.96820962,0.00035856,2]
[422461845,1778968255000,-679.41,0.00035616,2]
[422461851,1778968255000,-2267.62471776,0.00035895,2]
[422461846,1778968255000,-164.63041949,0.00035616,2]
[422461848,1778968255000,-546.0,0.00035681,11]
[422461853,1778968255000,-227.13,0.00035928,120]
[422461854,1778968255000,-1000.0,0.00035939,72]
[422461857,1778968255000,-199.293253,0.00035987,7]
[422461858,1778968255000,-199.293253,0.00035987,7]
[422461852,1778968255000,-150.0,0.00035899,2]
[422461863,1778968255000,-7734.53918169,0.00036068,2]
[422461856,1778968255000,-199.293253,0.00035987,7]
[422461855,1778968255000,-199.293253,0.00035987,7]
[422461859,1778968255000,-1000.0,0.00036048,2]
[422461860,1778968255000,-1000.0,0.00036048,2]
[422461861,1778968255000,-1000.0,0.00036048,2]
[422461862,1778968255000,-4145.74070859,0.00036049,2]
[422461866,1778968255000,-528.657617,0.000361,7]
[422461867,1778968255000,-528.657617,0.000361,7]
[422461870,1778968255000,-184.204153,0.000361,7]
[422461865,1778968255000,-265990.6042015,0.000361,2]
[422461868,1778968255000,-528.657617,0.000361,7]
[422461864,1778968255000,-151.0,0.00036097,14]
[422461872,1778968255000,-184.204153,0.000361,7]
[422461871,1778968255000,-184.204153,0.000361,7]
[422461876,1778968255000,-151.0,0.000361,7]
[422461905,1778968255000,-1000.0,0.00036297,76]
[422461869,1778968255000,-528.657617,0.000361,7]
[422461903,1778968255000,-249.82,0.00036247,120]
[422461945,1778968255000,-300.0,0.00036329,2]
[422461955,1778968255000,-1791.04776837,0.00036329,2]
[422461956,1778968255000,-300.00000001,0.00036329,2]
[422461944,1778968255000,-300.0,0.00036329,2]
[422461947,1778968255000,-344.08088589,0.00036329,2]
[422461946,1778968255000,-1912.98732614,0.00036329,2]
[422461948,1778968255000,-527.04605611,0.00036329,2]
[422461949,1778968255000,-300.0,0.00036329,2]
[422461952,1778968255000,-309.68315104,0.00036329,2]
[422461950,1778968255000,-300.0,0.00036329,2]
[422461954,1778968255000,-864.71533708,0.00036329,2]
[422461951,1778968255000,-1147.52562491,0.00036329,2]
[422461953,1778968255000,-300.0,0.00036329,2]
[422461958,1778968255000,-300.0,0.00036329,2]
[422461934,1778968255000,-300.0,0.00036329,2]
[422461968,1778968255000,-1127.79186826,0.00036329,2]
[422461967,1778968255000,-300.0,0.00036329,2]
[422461961,1778968255000,-452.04263183,0.00036329,2]
[422461963,1778968255000,-300.0,0.00036329,2]
[422461965,1778968255000,-484.23291958,0.00036329,2]
[422461959,1778968255000,-300.0,0.00036329,2]
[422461970,1778968255000,-300.0,0.00036329,2]
[422461969,1778968255000,-300.0,0.00036329,2]
[422461966,1778968255000,-309.92123961,0.00036329,2]
[422461960,1778968255000,-300.0,0.00036329,2]
[422461964,1778968255000,-300.0,0.00036329,2]
[422461973,1778968255000,-1095.07136273,0.00036329,2]
[422461971,1778968255000,-300.0,0.00036329,2]
[422461972,1778968255000,-300.0,0.00036329,2]
[422461915,1778968255000,-4145.74070859,0.00036315,2]
[422461957,1778968255000,-300.0,0.00036329,2]
[422461938,1778968255000,-1067.23644451,0.00036329,2]
[422461962,1778968255000,-300.0,0.00036329,2]
[422461941,1778968255000,-301.8794073,0.00036329,2]
[422461936,1778968255000,-527.89629163,0.00036329,2]
[422461911,1778968255000,-150.0,0.00036298,2]
[422461910,1778968255000,-321.60622561,0.00036298,2]
[422461907,1778968255000,-3312.41775212,0.00036298,2]
[422461909,1778968255000,-17297.33122518,0.00036298,2]
[422461913,1778968255000,-238.32596129,0.00036298,2]
[422461912,1778968255000,-2292.88047969,0.00036298,2]
[422461917,1778968255000,-300.0,0.00036329,2]
[422461918,1778968255000,-300.0,0.00036329,2]
[422461920,1778968255000,-300.0,0.00036329,2]
[422461928,1778968255000,-300.0,0.00036329,2]
[422461930,1778968255000,-300.0,0.00036329,2]
[422461919,1778968255000,-300.0,0.00036329,2]
[422461923,1778968255000,-300.0,0.00036329,2]
[422461921,1778968255000,-497.93417825,0.00036329,2]
[422461908,1778968255000,-150.0,0.00036298,2]
[422461927,1778968255000,-657.75427738,0.00036329,2]
[422461942,1778968255000,-300.0,0.00036329,2]
[422461922,1778968255000,-300.0,0.00036329,2]
[422461940,1778968255000,-503.56301347,0.00036329,2]
[422461933,1778968255000,-377.11499472,0.00036329,2]
[422461935,1778968255000,-300.0,0.00036329,2]
[422461939,1778968255000,-893.66998664,0.00036329,2]
[422461943,1778968255000,-300.0,0.00036329,2]
[422461937,1778968255000,-300.0,0.00036329,2]
[422461932,1778968255000,-604.63991303,0.00036329,2]
[422461931,1778968255000,-300.0,0.00036329,2]
[422461926,1778968255000,-300.0,0.00036329,2]
[422461929,1778968255000,-300.0,0.00036329,2]
[422461925,1778968255000,-300.00000001,0.00036329,2]
[422461924,1778968255000,-300.0,0.00036329,2]
[422462010,1778968256000,-300.0,0.00036329,2]
[422462012,1778968256000,-309.68315104,0.00036329,2]
[422462019,1778968256000,-310.99730567,0.00036329,2]
[422462003,1778968256000,-949.2762563,0.00036329,2]
[422461998,1778968256000,-301.98895015,0.00036329,2]
[422462001,1778968256000,-300.0,0.00036329,2]
[422462007,1778968256000,-527.04605611,0.00036329,2]
[422462004,1778968256000,-1912.98732614,0.00036329,2]
[422462006,1778968256000,-344.08088588,0.00036329,2]
[422462009,1778968256000,-300.0,0.00036329,2]
[422462018,1778968256000,-300.0,0.00036329,2]
[422462011,1778968256000,-1147.52562491,0.00036329,2]
[422462013,1778968256000,-300.0,0.00036329,2]
[422462016,1778968256000,-300.0,0.00036329,2]
[422462015,1778968256000,-1791.04776837,0.00036329,2]
[422462014,1778968256000,-864.71533708,0.00036329,2]
[422462017,1778968256000,-300.0,0.00036329,2]
[422462024,1778968256000,-300.0,0.00036329,2]
[422462027,1778968256000,-300.0,0.00036329,2]
[422462020,1778968256000,-300.0,0.00036329,2]
[422462025,1778968256000,-452.04263183,0.00036329,2]
[422462002,1778968256000,-300.0,0.00036329,2]
[422462029,1778968256000,-300.0,0.00036329,2]
[422462008,1778968256000,-300.0,0.00036329,2]
[422462000,1778968256000,-300.20522211,0.00036329,2]
[422461990,1778968256000,-604.63991303,0.00036329,2]
[422461997,1778968256000,-301.8794073,0.00036329,2]
[422462026,1778968256000,-300.0,0.00036329,2]
[422461982,1778968256000,-300.0,0.00036329,2]
[422461981,1778968256000,-300.0,0.00036329,2]
[422461977,1778968256000,-300.0,0.00036329,2]
[422461974,1778968256000,-300.0,0.00036329,2]
[422461983,1778968256000,-300.00000001,0.00036329,2]
[422461976,1778968256000,-300.0,0.00036329,2]
[422461980,1778968256000,-300.0,0.00036329,2]
[422461975,1778968256000,-300.0,0.00036329,2]
[422461979,1778968256000,-300.0,0.00036329,2]
[422461987,1778968256000,-300.0,0.00036329,2]
[422461991,1778968256000,-300.0,0.00036329,2]
[422461985,1778968256000,-492.84022017,0.00036329,2]
[422461992,1778968256000,-300.0,0.00036329,2]
[422461989,1778968256000,-300.0,0.00036329,2]
[422461986,1778968256000,-300.0,0.00036329,2]
[422461995,1778968256000,-893.66998664,0.00036329,2]
[422461984,1778968256000,-300.0,0.00036329,2]
[422461993,1778968256000,-300.0,0.00036329,2]
[422461988,1778968256000,-316.38872428,0.00036329,2]
[422461994,1778968256000,-300.0,0.00036329,2]
[422461996,1778968256000,-726.26438584,0.00036329,2]
[422461999,1778968256000,-300.00000001,0.00036329,2]
[422462005,1778968256000,-300.0,0.00036329,2]
[422462022,1778968256000,-300.0,0.00036329,2]
[422461978,1778968256000,-300.0,0.00036329,2]
[422462023,1778968256000,-577.38521552,0.00036329,2]
[422462058,1778968256000,-500.0,0.000369,13]
[422462054,1778968256000,-586.93916371,0.00036868,2]
[422462059,1778968256000,-200.0,0.000369,14]
[422462062,1778968256000,-284.289204,0.00036968,7]
[422462060,1778968256000,-2082.01435369,0.00036945,5]
[422462061,1778968256000,-151.0,0.00036968,7]
[422462066,1778968256000,-151.0,0.00036968,7]
[422462063,1778968256000,-284.289204,0.00036968,7]
[422462065,1778968256000,-284.289204,0.00036968,7]
[422462067,1778968256000,-151.0,0.00036968,7]
[422462069,1778968256000,-151.0,0.00036968,7]
[422462068,1778968256000,-151.0,0.00036968,7]
[422462064,1778968256000,-284.289204,0.00036968,7]
[422462070,1778968256000,-151.0,0.00036968,7]
[422462073,1778968256000,-155.312686,0.00036968,7]
[422462071,1778968256000,-151.0,0.00036968,7]
[422462075,1778968256000,-151.0,0.00036968,7]
[422462077,1778968256000,-1198.758275,0.00036968,7]
[422462072,1778968256000,-151.0,0.00036968,7]
[422462078,1778968256000,-1198.758275,0.00036968,7]
[422462074,1778968256000,-1198.758275,0.00036968,7]
[422462079,1778968256000,-195.921761,0.00036968,7]
[422462021,1778968256000,-300.0,0.00036329,2]
[422462056,1778968256000,-12451.7203,0.00036886,2]
[422462053,1778968256000,-696.87459859,0.00036834,2]
[422462076,1778968256000,-1198.758275,0.00036968,7]
[422462057,1778968256000,-1245.1091,0.00036886,2]
[422462055,1778968256000,-274.29673012,0.00036868,2]
[422462031,1778968256000,-309.92123961,0.00036329,2]
[422462028,1778968256000,-300.0,0.00036329,2]
[422462032,1778968256000,-300.0,0.00036329,2]
[422462035,1778968256000,-1061.0,0.00036333,2]
[422462038,1778968256000,-542.96820962,0.00036404,2]
[422462040,1778968256000,-8321.47,0.000365,14]
[422462036,1778968256000,-893.51,0.00036362,30]
[422462037,1778968256000,-4145.74070859,0.0003638,2]
[422462034,1778968256000,-1127.79186826,0.00036329,2]
[422462039,1778968256000,-1000.0,0.00036499,15]
[422462033,1778968256000,-300.0,0.00036329,2]
[422462030,1778968256000,-484.23291958,0.00036329,2]
[422462043,1778968256000,-4145.74070859,0.0003655,2]
[422462044,1778968256000,-542.96820962,0.0003655,2]
[422462042,1778968256000,-4145.74070859,0.00036547,2]
[422462045,1778968256000,-542.96820962,0.00036551,2]
[422462046,1778968256000,-4145.74070859,0.00036639,2]
[422462048,1778968256000,-151.29889973,0.0003669,2]
[422462049,1778968256000,-2312.0,0.00036704,11]
[422462047,1778968256000,-1486.69,0.00036643,60]
[422462051,1778968256000,-546.0,0.00036748,12]
[422462052,1778968256000,-287.37096849,0.00036834,2]
[422462050,1778968256000,-1000.0,0.00036747,12]
[422462041,1778968256000,-4145.74070859,0.00036522,2]
[422462118,1778968257000,-151.0,0.00036968,7]
[422462111,1778968257000,-448.43651,0.00036968,7]
[422462112,1778968257000,-1850.140719,0.00036968,7]
[422462099,1778968257000,-151.0,0.00036968,3]
[422462109,1778968257000,-300.0,0.00036968,5]
[422462110,1778968257000,-1850.140719,0.00036968,7]
[422462106,1778968257000,-300.0,0.00036968,5]
[422462098,1778968257000,-463.691199,0.00036968,7]
[422462114,1778968257000,-1850.140719,0.00036968,7]
[422462116,1778968257000,-1850.140719,0.00036968,7]
[422462121,1778968257000,-151.0,0.00036968,7]
[422462115,1778968257000,-448.43651,0.00036968,7]
[422462117,1778968257000,-448.43651,0.00036968,7]
[422462120,1778968257000,-151.0,0.00036968,7]
[422462122,1778968257000,-273.878754,0.00036968,7]
[422462128,1778968257000,-151.0,0.00036968,7]
[422462119,1778968257000,-151.0,0.00036968,7]
[422462125,1778968257000,-151.0,0.00036968,7]
[422462124,1778968257000,-240.725161,0.00036968,7]
[422462100,1778968257000,-152.244038,0.00036968,3]
[422462126,1778968257000,-240.725161,0.00036968,7]
[422462113,1778968257000,-448.43651,0.00036968,7]
[422462108,1778968257000,-300.0,0.00036968,5]
[422462092,1778968257000,-151.0,0.00036968,3]
[422462103,1778968257000,-152.939565,0.00036968,7]
[422462127,1778968257000,-151.0,0.00036968,7]
[422462080,1778968257000,-374.778137,0.00036968,7]
[422462081,1778968257000,-374.778137,0.00036968,7]
[422462082,1778968257000,-374.778137,0.00036968,7]
[422462085,1778968257000,-2123.786567,0.00036968,7]
[422462083,1778968257000,-151.0,0.00036968,7]
[422462086,1778968257000,-2123.786567,0.00036968,7]
[422462084,1778968257000,-374.778137,0.00036968,7]
[422462087,1778968257000,-2123.786567,0.00036968,7]
[422462088,1778968257000,-2123.786567,0.00036968,7]
[422462107,1778968257000,-300.0,0.00036968,5]
[422462091,1778968257000,-305.660067,0.00036968,7]
[422462096,1778968257000,-151.0,0.00036968,3]
[422462090,1778968257000,-305.660067,0.00036968,7]
[422462093,1778968257000,-151.0,0.00036968,3]
[422462089,1778968257000,-305.660067,0.00036968,7]
[422462097,1778968257000,-151.0,0.00036968,3]
[422462094,1778968257000,-305.660067,0.00036968,7]
[422462104,1778968257000,-463.691199,0.00036968,7]
[422462102,1778968257000,-463.691199,0.00036968,7]
[422462101,1778968257000,-463.691199,0.00036968,7]
[422462105,1778968257000,-300.0,0.00036968,5]
[422462095,1778968257000,-151.0,0.00036968,3]
[422462129,1778968257000,-240.725161,0.00036968,7]
[422462123,1778968257000,-240.725161,0.00036968,7]
[422462132,1778968257000,-784239.691725,0.00036968,2]
[422462158,1778968257000,-199.293253,0.00037578,7]
[422462159,1778968257000,-199.293253,0.00037578,7]
[422462160,1778968257000,-199.293253,0.00037578,7]
[422462162,1778968257000,-528.657617,0.00037578,7]
[422462161,1778968257000,-3780.5536825,0.00037578,2]
[422462163,1778968257000,-528.657617,0.00037578,7]
[422462164,1778968257000,-528.657617,0.00037578,7]
[422462168,1778968257000,-184.204153,0.00037578,7]
[422462166,1778968257000,-184.204153,0.00037578,7]
[422462169,1778968257000,-184.204153,0.00037578,7]
[422462155,1778968257000,-5010.1191017,0.00037578,2]
[422462167,1778968257000,-184.204153,0.00037578,7]
[422462170,1778968257000,-151.0,0.00037578,7]
[422462172,1778968257000,-151.0,0.00037578,7]
[422462173,1778968257000,-151.0,0.00037578,7]
[422462174,1778968257000,-151.0,0.00037578,7]
[422462175,1778968257000,-151.0,0.00037578,7]
[422462177,1778968257000,-279.30719,0.00037578,7]
[422462176,1778968257000,-279.30719,0.00037578,7]
[422462179,1778968257000,-279.30719,0.00037578,7]
[422462178,1778968257000,-279.30719,0.00037578,7]
[422462131,1778968257000,-3075.274003,0.00036968,2]
[422462171,1778968257000,-151.0,0.00037578,7]
[422462157,1778968257000,-199.293253,0.00037578,7]
[422462165,1778968257000,-528.657617,0.00037578,7]
[422462151,1778968257000,-28566.5438411,0.00037578,2]
[422462136,1778968257000,-1352.35306584,0.0003703,7]
[422462156,1778968257000,-3780.5536824,0.00037578,2]
[422462130,1778968257000,-151.0,0.00036968,7]
[422462135,1778968257000,-12451.7203,0.00037017,2]
[422462134,1778968257000,-228.39213103,0.00037,2]
[422462138,1778968257000,-1236.57875545,0.0003703,7]
[422462137,1778968257000,-1225.46385036,0.0003703,2]
[422462140,1778968257000,-12451.7203,0.00037149,2]
[422462133,1778968257000,-1582.625274,0.00036968,2]
[422462141,1778968257000,-350.0,0.00037219,2]
[422462143,1778968257000,-12451.7203,0.00037281,2]
[422462139,1778968257000,-151.0,0.00037149,7]
[422462142,1778968257000,-350.0,0.0003726,90]
[422462144,1778968257000,-546.0,0.00037282,13]
[422462146,1778968257000,-12451.7203,0.00037413,2]
[422462148,1778968257000,-1000.0,0.00037538,5]
[422462145,1778968257000,-1099.96566879,0.00037335,2]
[422462149,1778968257000,-12451.7203,0.00037544,2]
[422462147,1778968257000,-1074.0121,0.00037504,30]
[422462154,1778968257000,-2463.1157803,0.00037578,2]
[422462150,1778968257000,-427945.7435141,0.00037578,2]
[422462153,1778968257000,-200945.7306363,0.00037578,2]
[422462152,1778968257000,-259745.1769576,0.00037578,2]
[422462221,1778968258000,-9368.3861182,0.000381,33]
[422462217,1778968258000,-2311.0,0.00038,7]
[422462219,1778968258000,-158.17,0.00038094,60]
[422462218,1778968258000,-12451.7203,0.00038071,2]
[422462210,1778968258000,-300.0,0.00037943,2]
[422462213,1778968258000,-158.17,0.00037994,60]
[422462212,1778968258000,-350.0,0.0003799,3]
[422462209,1778968258000,-300.0,0.00037943,2]
[422462214,1778968258000,-152.0,0.00038,120]
[422462206,1778968258000,-150.0,0.00037902,2]
[422462228,1778968258000,-1208.72631002,0.000382,30]
[422462211,1778968258000,-208.0,0.00037943,2]
[422462226,1778968258000,-158.17,0.00038194,60]
[422462239,1778968258000,-300.0,0.00038276,2]
[422462222,1778968258000,-350.0,0.00038112,2]
[422462223,1778968258000,-165.0,0.00038115,2]
[422462225,1778968258000,-1000.0,0.00038164,60]
[422462227,1778968258000,-1208.72631002,0.000382,30]
[422462220,1778968258000,-1000.0,0.00038099,33]
[422462229,1778968258000,-901.10111614,0.000382,30]
[422462240,1778968258000,-300.0,0.00038276,2]
[422462231,1778968258000,-901.10111612,0.000382,30]
[422462234,1778968258000,-603.78610069,0.00038249,60]
[422462236,1778968258000,-5800.0,0.00038253,2]
[422462232,1778968258000,-1000.0,0.00038202,31]
[422462215,1778968258000,-228.0,0.00038,30]
[422462224,1778968258000,-851.9,0.00038125,30]
[422462205,1778968258000,-158.17,0.00037894,60]
[422462184,1778968258000,-1000.0,0.00037615,2]
[422462204,1778968258000,-388.0,0.00037885,2]
[422462180,1778968258000,-235.98,0.00037594,30]
[422462230,1778968258000,-901.10111612,0.000382,30]
[422462181,1778968258000,-158.17,0.00037594,60]
[422462182,1778968258000,-1078.25,0.000376,30]
[422462183,1778968258000,-305.33,0.00037615,120]
[422462190,1778968258000,-5561.18796262,0.00037747,2]
[422462187,1778968258000,-150.0,0.00037694,2]
[422462189,1778968258000,-8321.47,0.000377,14]
[422462186,1778968258000,-12451.7203,0.00037676,2]
[422462185,1778968258000,-1000.0,0.00037615,2]
[422462191,1778968258000,-284.12412572,0.00037753,120]
[422462188,1778968258000,-158.17,0.00037694,60]
[422462208,1778968258000,-12451.7203,0.0003794,2]
[422462197,1778968258000,-1245.1091,0.00037808,2]
[422462198,1778968258000,-1000.0,0.00037815,13]
[422462193,1778968258000,-1000.0,0.000378,7]
[422462192,1778968258000,-158.17,0.00037794,60]
[422462195,1778968258000,-1109.0,0.000378,7]
[422462199,1778968258000,-546.0,0.00037816,13]
[422462203,1778968258000,-350.0,0.00037844,2]
[422462194,1778968258000,-1000.0,0.000378,7]
[422462202,1778968258000,-211.0,0.00037838,2]
[422462196,1778968258000,-12451.7203,0.00037808,2]
[422462200,1778968258000,-287.37096849,0.00037834,2]
[422462207,1778968258000,-204.0,0.00037902,2]
[422462216,1778968258000,-151.0,0.00038,120]
[422462201,1778968258000,-696.87459859,0.00037834,2]
[422462235,1778968258000,-1000.0,0.00038251,60]
[422462291,1778968258000,-500.0,0.00038493,2]
[422462238,1778968258000,-300.0,0.00038276,2]
[422462272,1778968258000,-2312.0,0.00038392,11]
[422462270,1778968258000,-188.0271109,0.00038344,120]
[422462266,1778968258000,-500.0,0.00038344,120]
[422462274,1778968258000,-1000.0,0.00038399,90]
[422462275,1778968258000,-152.0,0.000384,120]
[422462277,1778968258000,-12451.7203,0.00038467,2]
[422462276,1778968258000,-1000.0,0.00038466,30]
[422462279,1778968258000,-1000.0,0.00038484,60]
[422462281,1778968258000,-500.0,0.00038493,2]
[422462284,1778968258000,-500.0,0.00038493,2]
[422462283,1778968258000,-500.0,0.00038493,2]
[422462285,1778968258000,-500.0,0.00038493,2]
[422462267,1778968258000,-500.0,0.00038344,120]
[422462282,1778968258000,-500.0,0.00038493,2]
[422462278,1778968258000,-1000.0,0.00038469,90]
[422462287,1778968258000,-500.0,0.00038493,2]
[422462289,1778968258000,-500.0,0.00038493,2]
[422462297,1778968258000,-500.0,0.00038493,2]
[422462293,1778968258000,-500.0,0.00038493,2]
[422462295,1778968258000,-500.0,0.00038493,2]
[422462290,1778968258000,-500.0,0.00038493,2]
[422462288,1778968258000,-500.0,0.00038493,2]
[422462292,1778968258000,-500.0,0.00038493,2]
[422462296,1778968258000,-500.0,0.00038493,2]
[422462294,1778968258000,-500.0,0.00038493,2]